[Event "December 5 Early 2023"]
[Site "https://www.chess.com"]
[Date "2023.12.05"]
[Round "9"]
[White "Caruana, Fabiano"]
[Black "Kamsky, Gata"]
[Result "1-0"]
[Board "8"]
[TimeControl "180+1"]
[WhiteFideId "2020009"]
[BlackFideId "2000024"]
[WhiteElo "3080"]
[BlackElo "2941"]
[WhiteTeam "USA"]
[BlackTeam "USA"]
[WhiteClock "0:00:28"]
[BlackClock "0:00:08"]

1. e4 {[%clk 0:03:00]}  c5 {[%clk 0:02:58]} 2. Nf3 {[%clk 0:03:01]}  e6 {[%clk 0:02:59]} 3. d4 {[%clk 0:03:01]}  cxd4 {[%clk 0:02:59]} 4. Nxd4 {[%clk 0:03:02]}  a6 {[%clk 0:03:00]} 5. Bd3 {[%clk 0:02:58]}  g6 {[%clk 0:02:58]} 6. O-O {[%clk 0:02:56]}  Bg7 {[%clk 0:02:59]} 7. Be3 {[%clk 0:02:56]}  Ne7 {[%clk 0:02:56]} 8. c4 {[%clk 0:02:54]}  Nbc6 {[%clk 0:02:55]} 9. Be2 {[%clk 0:02:53]}  O-O {[%clk 0:02:45]} 10. Nc3 {[%clk 0:02:53]}  b6 {[%clk 0:02:29]} 11. Qd2 {[%clk 0:02:52]}  f5 {[%clk 0:02:22]} 12. Nxc6 {[%clk 0:02:45]}  Nxc6 {[%clk 0:02:20]} 13. exf5 {[%clk 0:02:44]}  gxf5 {[%clk 0:02:13]} 14. Rad1 {[%clk 0:02:44]}  Ne5 {[%clk 0:01:50]} 15. Qd6 {[%clk 0:02:19]}  b5 {[%clk 0:01:46]} 16. cxb5 {[%clk 0:02:10]}  axb5 {[%clk 0:01:45]} 17. Bxb5 {[%clk 0:02:07]}  f4 {[%clk 0:01:37]} 18. Bd4 {[%clk 0:01:57]}  Qg5 {[%clk 0:01:36]} 19. f3 {[%clk 0:01:46]}  Rf7 {[%clk 0:01:16]} 20. a4 {[%clk 0:01:40]}  Bb7 {[%clk 0:01:14]} 21. Kh1 {[%clk 0:01:40]}  Bf6 {[%clk 0:01:07]} 22. Rf2 {[%clk 0:01:15]}  h5 {[%clk 0:00:53]} 23. Re1 {[%clk 0:01:07]}  Ng6 {[%clk 0:00:41]} 24. Bxf6 {[%clk 0:01:02]}  Qxf6 {[%clk 0:00:41]} 25. Qb6 {[%clk 0:00:55]}  Bc8 {[%clk 0:00:28]} 26. Ne4 {[%clk 0:00:53]}  Qe7 {[%clk 0:00:25]} 27. Nd6 {[%clk 0:00:51]}  Rh7 {[%clk 0:00:22]} 28. Rc2 {[%clk 0:00:50]}  Qf8 {[%clk 0:00:18]} 29. Rec1 {[%clk 0:00:48]}  Ne7 {[%clk 0:00:17]} 30. Bd3 {[%clk 0:00:40]}  Rg7 {[%clk 0:00:16]} 31. Be4 {[%clk 0:00:40]}  Ra6 {[%clk 0:00:16]} 32. Qb8 {[%clk 0:00:31]}  h4 {[%clk 0:00:10]} 33. Rxc8 {[%clk 0:00:27]}  Nxc8 {[%clk 0:00:08]} 34. Rxc8 {[%clk 0:00:28]} 1-0

[Event "December 5 Early 2023"]
[Site "https://www.chess.com"]
[Date "2023.12.05"]
[Round "9"]
[White "Bortnyk, Olexandr"]
[Black "Harutjunyan, Gevorg"]
[Result "1-0"]
[Board "11"]
[TimeControl "180+1"]
[WhiteFideId "14120828"]
[BlackFideId "13300873"]
[WhiteElo "3068"]
[BlackElo "2894"]
[WhiteTeam "UKR"]
[BlackTeam "ARM"]
[WhiteClock "0:02:06"]
[BlackClock "0:00:30"]

1. e4 {[%clk 0:03:00]}  c6 {[%clk 0:02:58]} 2. c4 {[%clk 0:03:00]}  d5 {[%clk 0:02:56]} 3. cxd5 {[%clk 0:03:01]}  cxd5 {[%clk 0:02:57]} 4. exd5 {[%clk 0:03:02]}  Nf6 {[%clk 0:02:57]} 5. Qa4+ {[%clk 0:03:03]}  Bd7 {[%clk 0:02:55]} 6. Qb3 {[%clk 0:03:03]}  e6 {[%clk 0:02:55]} 7. Qxb7 {[%clk 0:02:48]}  exd5 {[%clk 0:02:41]} 8. Nc3 {[%clk 0:02:40]}  Bc5 {[%clk 0:02:26]} 9. Qxa8 {[%clk 0:02:21]}  Qb6 {[%clk 0:02:06]} 10. Nxd5 {[%clk 0:02:21]}  Bxf2+ {[%clk 0:02:05]} 11. Kd1 {[%clk 0:02:21]}  Ba4+ {[%clk 0:01:47]} 12. b3 {[%clk 0:02:21]}  Bxb3+ {[%clk 0:01:44]} 13. axb3 {[%clk 0:02:22]}  Qxb3+ {[%clk 0:01:44]} 14. Ke2 {[%clk 0:02:23]}  Nxd5 {[%clk 0:01:42]} 15. Kxf2 {[%clk 0:02:21]}  O-O {[%clk 0:01:34]} 16. Qxa7 {[%clk 0:02:20]}  Nc6 {[%clk 0:01:28]} 17. Qc5 {[%clk 0:02:18]}  Ne5 {[%clk 0:01:16]} 18. Nf3 {[%clk 0:02:17]}  Ng4+ {[%clk 0:01:10]} 19. Kg1 {[%clk 0:02:18]}  Re8 {[%clk 0:00:57]} 20. h3 {[%clk 0:02:17]}  Ngf6 {[%clk 0:00:52]} 21. Bc4 {[%clk 0:02:11]}  Qc2 {[%clk 0:00:30]} 22. Qd4 {[%clk 0:02:06]} 1-0

[Event "December 5 Early 2023"]
[Site "https://www.chess.com"]
[Date "2023.12.05"]
[Round "9"]
[White "Tran, Tuan Minh"]
[Black "Javakhadze, Zurab"]
[Result "1-0"]
[Board "17"]
[TimeControl "180+1"]
[WhiteFideId "12401820"]
[BlackFideId "13603647"]
[WhiteElo "2938"]
[BlackElo "2840"]
[WhiteTeam "VIE"]
[BlackTeam "GEO"]
[WhiteClock "0:00:51"]
[BlackClock "0:00:00"]

1. d4 {[%clk 0:02:58]}  d5 {[%clk 0:02:57]} 2. c4 {[%clk 0:02:58]}  e6 {[%clk 0:02:57]} 3. Nc3 {[%clk 0:02:58]}  Nf6 {[%clk 0:02:56]} 4. Nf3 {[%clk 0:02:59]}  Nbd7 {[%clk 0:02:55]} 5. Bf4 {[%clk 0:02:59]}  dxc4 {[%clk 0:02:29]} 6. e3 {[%clk 0:02:59]}  Nd5 {[%clk 0:02:26]} 7. Bxc4 {[%clk 0:02:58]}  Nxf4 {[%clk 0:02:26]} 8. exf4 {[%clk 0:02:59]}  a6 {[%clk 0:02:26]} 9. O-O {[%clk 0:02:58]}  Bd6 {[%clk 0:02:26]} 10. g3 {[%clk 0:02:54]}  O-O {[%clk 0:02:26]} 11. Bb3 {[%clk 0:02:53]}  b5 {[%clk 0:02:24]} 12. d5 {[%clk 0:02:50]}  Nc5 {[%clk 0:02:19]} 13. Nd4 {[%clk 0:02:26]}  Nxb3 {[%clk 0:02:04]} 14. Qxb3 {[%clk 0:02:27]}  exd5 {[%clk 0:02:02]} 15. Qxd5 {[%clk 0:02:26]}  Bh3 {[%clk 0:01:34]} 16. Rfd1 {[%clk 0:02:26]}  Bg4 {[%clk 0:01:32]} 17. Rd2 {[%clk 0:02:21]}  Bb4 {[%clk 0:01:24]} 18. Nc6 {[%clk 0:01:57]}  Qxd5 {[%clk 0:01:12]} 19. Rxd5 {[%clk 0:01:58]}  Bd6 {[%clk 0:00:49]} 20. Kg2 {[%clk 0:01:54]}  Rfe8 {[%clk 0:00:46]} 21. f3 {[%clk 0:01:50]}  Bd7 {[%clk 0:00:41]} 22. Ne5 {[%clk 0:01:50]}  Be6 {[%clk 0:00:38]} 23. Rd2 {[%clk 0:01:50]}  f6 {[%clk 0:00:33]} 24. Nc6 {[%clk 0:01:48]}  Bf7 {[%clk 0:00:21]} 25. Ne4 {[%clk 0:01:48]}  Bf8 {[%clk 0:00:17]} 26. a4 {[%clk 0:01:48]}  f5 {[%clk 0:00:15]} 27. Nc3 {[%clk 0:01:45]}  b4 {[%clk 0:00:11]} 28. Ne2 {[%clk 0:01:42]}  Bd6 {[%clk 0:00:12]} 29. Ned4 {[%clk 0:01:42]}  g6 {[%clk 0:00:11]} 30. a5 {[%clk 0:01:43]}  Re3 {[%clk 0:00:10]} 31. Rc1 {[%clk 0:01:42]}  b3 {[%clk 0:00:10]} 32. Kf2 {[%clk 0:01:43]}  Rae8 {[%clk 0:00:09]} 33. Re2 {[%clk 0:01:39]}  Rxe2+ {[%clk 0:00:09]} 34. Nxe2 {[%clk 0:01:40]}  Bd5 {[%clk 0:00:09]} 35. Ned4 {[%clk 0:01:40]}  Kf7 {[%clk 0:00:07]} 36. Ne5+ {[%clk 0:01:38]}  Bxe5 {[%clk 0:00:06]} 37. fxe5 {[%clk 0:01:39]}  Rxe5 {[%clk 0:00:07]} 38. Rxc7+ {[%clk 0:01:40]}  Re7 {[%clk 0:00:07]} 39. Rc5 {[%clk 0:01:40]}  Rd7 {[%clk 0:00:08]} 40. Ke3 {[%clk 0:01:40]}  Ke7 {[%clk 0:00:08]} 41. Rc8 {[%clk 0:01:40]}  Kd6 {[%clk 0:00:08]} 42. Rb8 {[%clk 0:01:40]}  Re7+ {[%clk 0:00:05]} 43. Kd2 {[%clk 0:01:39]}  Rc7 {[%clk 0:00:03]} 44. Nxb3 {[%clk 0:01:36]}  Bxf3 {[%clk 0:00:03]} 45. Nd4 {[%clk 0:01:35]}  Be4 {[%clk 0:00:04]} 46. Rb6+ {[%clk 0:01:33]}  Ke5 {[%clk 0:00:03]} 47. Ke3 {[%clk 0:01:33]}  Rd7 {[%clk 0:00:02]} 48. Re6+ {[%clk 0:01:22]}  Kd5 {[%clk 0:00:02]} 49. Rxa6 {[%clk 0:01:22]}  Kc4 {[%clk 0:00:01]} 50. Ne6 {[%clk 0:01:04]}  Kb5 {[%clk 0:00:02]} 51. Rb6+ {[%clk 0:00:56]}  Kxa5 {[%clk 0:00:02]} 52. Rb8 {[%clk 0:00:52]}  h6 {[%clk 0:00:03]} 53. b4+ {[%clk 0:00:49]}  Ka6 {[%clk 0:00:02]} 54. Nc5+ {[%clk 0:00:50]}  Ka7 {[%clk 0:00:00]} 55. Nxd7 {[%clk 0:00:51]} 1-0

[Event "December 5 Early 2023"]
[Site "https://www.chess.com"]
[Date "2023.12.05"]
[Round "9"]
[White "Hayrapetyan, Hovik"]
[Black "Svane, Rasmus"]
[Result "0-1"]
[Board "19"]
[TimeControl "180+1"]
[WhiteFideId "13302639"]
[BlackFideId "4657101"]
[WhiteElo "2821"]
[BlackElo "2934"]
[WhiteTeam "ARM"]
[BlackTeam "GER"]
[WhiteClock "0:00:10"]
[BlackClock "0:01:57"]

1. d4 {[%clk 0:02:53]}  d5 {[%clk 0:02:57]} 2. c4 {[%clk 0:02:53]}  e6 {[%clk 0:02:57]} 3. Nc3 {[%clk 0:02:48]}  a6 {[%clk 0:02:57]} 4. cxd5 {[%clk 0:02:45]}  exd5 {[%clk 0:02:58]} 5. Nf3 {[%clk 0:02:46]}  Nf6 {[%clk 0:02:58]} 6. Bg5 {[%clk 0:02:45]}  Be6 {[%clk 0:02:57]} 7. e3 {[%clk 0:02:45]}  Nbd7 {[%clk 0:02:56]} 8. Bd3 {[%clk 0:02:45]}  c6 {[%clk 0:02:55]} 9. O-O {[%clk 0:02:44]}  Bd6 {[%clk 0:02:54]} 10. Bf4 {[%clk 0:02:45]}  Qc7 {[%clk 0:02:54]} 11. Bxd6 {[%clk 0:02:45]}  Qxd6 {[%clk 0:02:55]} 12. h3 {[%clk 0:02:46]}  O-O {[%clk 0:02:55]} 13. Qc2 {[%clk 0:02:45]}  g6 {[%clk 0:02:54]} 14. b4 {[%clk 0:02:27]}  Qe7 {[%clk 0:02:50]} 15. a4 {[%clk 0:02:25]}  Nb6 {[%clk 0:02:50]} 16. b5 {[%clk 0:01:31]}  cxb5 {[%clk 0:02:49]} 17. axb5 {[%clk 0:01:32]}  a5 {[%clk 0:02:49]} 18. Na4 {[%clk 0:01:24]}  Rfc8 {[%clk 0:02:45]} 19. Qb3 {[%clk 0:01:09]}  Nfd7 {[%clk 0:02:34]} 20. Rfc1 {[%clk 0:00:59]}  Rxc1+ {[%clk 0:02:28]} 21. Rxc1 {[%clk 0:00:58]}  Nxa4 {[%clk 0:02:27]} 22. Qxa4 {[%clk 0:00:59]}  Nb6 {[%clk 0:02:27]} 23. Qa2 {[%clk 0:00:59]}  a4 {[%clk 0:02:25]} 24. Rc5 {[%clk 0:00:43]}  a3 {[%clk 0:02:22]} 25. Nd2 {[%clk 0:00:38]}  Nd7 {[%clk 0:02:19]} 26. Rc3 {[%clk 0:00:37]}  Qb4 {[%clk 0:02:06]} 27. Rb3 {[%clk 0:00:37]}  Qa4 {[%clk 0:02:04]} 28. Nb1 {[%clk 0:00:34]}  Qxb3 {[%clk 0:01:56]} 29. Qxb3 {[%clk 0:00:10]}  a2 {[%clk 0:01:57]} 0-1

[Event "December 5 Early 2023"]
[Site "https://www.chess.com"]
[Date "2023.12.05"]
[Round "9"]
[White "Dragnev, Valentin"]
[Black "Vokhidov, Shamsiddin"]
[Result "1/2-1/2"]
[Board "20"]
[TimeControl "180+1"]
[WhiteFideId "1634852"]
[BlackFideId "14204223"]
[WhiteElo "2806"]
[BlackElo "2916"]
[WhiteTeam "AUT"]
[BlackTeam "UZB"]
[WhiteClock "0:00:05"]
[BlackClock "0:00:11"]

1. e4 {[%clk 0:03:00]}  c5 {[%clk 0:02:59]} 2. Nc3 {[%clk 0:02:59]}  Nc6 {[%clk 0:02:59]} 3. Nf3 {[%clk 0:02:59]}  e6 {[%clk 0:02:58]} 4. d4 {[%clk 0:02:57]}  cxd4 {[%clk 0:02:59]} 5. Nxd4 {[%clk 0:02:58]}  Qc7 {[%clk 0:02:59]} 6. Ncb5 {[%clk 0:02:59]}  Qb8 {[%clk 0:02:59]} 7. Bd3 {[%clk 0:02:58]}  Nf6 {[%clk 0:03:00]} 8. O-O {[%clk 0:02:58]}  Be7 {[%clk 0:03:01]} 9. Re1 {[%clk 0:02:56]}  O-O {[%clk 0:03:01]} 10. Nf3 {[%clk 0:02:57]}  a6 {[%clk 0:02:58]} 11. Nbd4 {[%clk 0:02:56]}  Nxd4 {[%clk 0:02:56]} 12. Nxd4 {[%clk 0:02:57]}  d6 {[%clk 0:02:55]} 13. c4 {[%clk 0:02:49]}  Qc7 {[%clk 0:02:55]} 14. b3 {[%clk 0:02:48]}  b6 {[%clk 0:02:55]} 15. Bb2 {[%clk 0:02:48]}  Bb7 {[%clk 0:02:55]} 16. Rc1 {[%clk 0:02:49]}  Rac8 {[%clk 0:02:55]} 17. Qf3 {[%clk 0:02:42]}  Qb8 {[%clk 0:02:53]} 18. Qh3 {[%clk 0:02:42]}  Rfe8 {[%clk 0:02:51]} 19. Nf3 {[%clk 0:02:35]}  h6 {[%clk 0:02:46]} 20. e5 {[%clk 0:02:17]}  dxe5 {[%clk 0:02:42]} 21. Nxe5 {[%clk 0:02:18]}  Bc5 {[%clk 0:02:35]} 22. Ng4 {[%clk 0:01:36]}  Qf4 {[%clk 0:02:34]} 23. Nxf6+ {[%clk 0:01:09]}  gxf6 {[%clk 0:02:34]} 24. Qg3+ {[%clk 0:01:07]}  Qxg3 {[%clk 0:02:33]} 25. hxg3 {[%clk 0:01:07]}  Kg7 {[%clk 0:02:30]} 26. Be4 {[%clk 0:01:05]}  Bxe4 {[%clk 0:02:29]} 27. Rxe4 {[%clk 0:01:06]}  h5 {[%clk 0:02:17]} 28. g4 {[%clk 0:00:44]}  Rh8 {[%clk 0:02:09]} 29. g5 {[%clk 0:00:42]}  Be7 {[%clk 0:02:08]} 30. Re3 {[%clk 0:00:34]}  h4 {[%clk 0:01:51]} 31. Rf3 {[%clk 0:00:34]}  e5 {[%clk 0:01:49]} 32. Re1 {[%clk 0:00:34]}  Rh5 {[%clk 0:01:45]} 33. gxf6+ {[%clk 0:00:25]}  Bxf6 {[%clk 0:01:46]} 34. Re4 {[%clk 0:00:25]}  Kg6 {[%clk 0:01:36]} 35. Rg4+ {[%clk 0:00:23]}  Rg5 {[%clk 0:01:34]} 36. Rxh4 {[%clk 0:00:18]}  Rd8 {[%clk 0:01:34]} 37. Rhh3 {[%clk 0:00:13]}  Rd2 {[%clk 0:01:28]} 38. Bc3 {[%clk 0:00:14]}  Rxa2 {[%clk 0:01:26]} 39. Rhg3 {[%clk 0:00:14]}  Re2 {[%clk 0:01:14]} 40. Kf1 {[%clk 0:00:12]}  Rc2 {[%clk 0:01:12]} 41. Ke1 {[%clk 0:00:11]}  Rxg3 {[%clk 0:01:08]} 42. Rxg3+ {[%clk 0:00:12]}  Kf5 {[%clk 0:01:08]} 43. Rf3+ {[%clk 0:00:13]}  Ke6 {[%clk 0:01:09]} 44. Re3 {[%clk 0:00:13]}  Bg7 {[%clk 0:01:05]} 45. Bxe5 {[%clk 0:00:09]}  Bxe5 {[%clk 0:01:00]} 46. f4 {[%clk 0:00:09]}  f6 {[%clk 0:00:42]} 47. fxe5 {[%clk 0:00:09]}  fxe5 {[%clk 0:00:43]} 48. g4 {[%clk 0:00:10]}  Rg2 {[%clk 0:00:41]} 49. Re4 {[%clk 0:00:10]}  a5 {[%clk 0:00:35]} 50. Kd1 {[%clk 0:00:11]}  Kd6 {[%clk 0:00:30]} 51. Kc1 {[%clk 0:00:08]}  Ke6 {[%clk 0:00:23]} 52. Kb1 {[%clk 0:00:08]}  Rf2 {[%clk 0:00:17]} 53. Kc1 {[%clk 0:00:08]}  Rf4 {[%clk 0:00:18]} 54. Rxf4 {[%clk 0:00:05]}  exf4 {[%clk 0:00:19]} 55. Kd1 {[%clk 0:00:06]}  Ke5 {[%clk 0:00:17]} 56. Ke2 {[%clk 0:00:05]}  Kf6 {[%clk 0:00:14]} 57. Kf2 {[%clk 0:00:04]}  Kg6 {[%clk 0:00:14]} 58. Kg2 {[%clk 0:00:04]}  Kf6 {[%clk 0:00:12]} 59. Kf2 {[%clk 0:00:04]}  Kg6 {[%clk 0:00:11]} 60. Kg2 {[%clk 0:00:04]}  Kh6 {[%clk 0:00:11]} 61. Kf2 {[%clk 0:00:05]}  Kg6 {[%clk 0:00:11]} 1/2-1/2

[Event "December 5 Early 2023"]
[Site "https://www.chess.com"]
[Date "2023.12.05"]
[Round "9"]
[White "Pranav, V"]
[Black "Mamedov, Edgar"]
[Result "1-0"]
[Board "22"]
[TimeControl "180+1"]
[WhiteFideId "25060783"]
[BlackFideId "13739980"]
[WhiteElo "3055"]
[BlackElo "2749"]
[WhiteTeam "IND"]
[BlackTeam "KAZ"]
[WhiteClock "0:00:08"]
[BlackClock "0:00:02"]

1. e4 {[%clk 0:03:00]}  c5 {[%clk 0:02:59]} 2. Nf3 {[%clk 0:03:01]}  Nc6 {[%clk 0:02:59]} 3. Bb5 {[%clk 0:03:00]}  e5 {[%clk 0:02:59]} 4. O-O {[%clk 0:03:00]}  Bd6 {[%clk 0:02:57]} 5. c3 {[%clk 0:03:00]}  a6 {[%clk 0:02:52]} 6. Ba4 {[%clk 0:03:01]}  b5 {[%clk 0:02:44]} 7. Bc2 {[%clk 0:03:01]}  Nge7 {[%clk 0:02:42]} 8. d4 {[%clk 0:03:01]}  cxd4 {[%clk 0:02:41]} 9. cxd4 {[%clk 0:03:02]}  Nxd4 {[%clk 0:02:41]} 10. Nxd4 {[%clk 0:03:03]}  exd4 {[%clk 0:02:42]} 11. Qxd4 {[%clk 0:03:02]}  Qc7 {[%clk 0:02:41]} 12. Nc3 {[%clk 0:02:47]}  Bxh2+ {[%clk 0:02:40]} 13. Kh1 {[%clk 0:02:47]}  Be5 {[%clk 0:02:40]} 14. Qd1 {[%clk 0:02:41]}  O-O {[%clk 0:02:31]} 15. f4 {[%clk 0:02:39]}  Bxc3 {[%clk 0:02:29]} 16. bxc3 {[%clk 0:02:40]}  d5 {[%clk 0:02:18]} 17. Ba3 {[%clk 0:02:19]}  dxe4 {[%clk 0:01:49]} 18. Bxe4 {[%clk 0:02:12]}  Bb7 {[%clk 0:01:49]} 19. Qf3 {[%clk 0:01:49]}  Rab8 {[%clk 0:01:31]} 20. Rae1 {[%clk 0:01:48]}  Rfe8 {[%clk 0:01:21]} 21. Bxb7 {[%clk 0:01:06]}  Rxb7 {[%clk 0:01:18]} 22. Re2 {[%clk 0:00:52]}  a5 {[%clk 0:01:03]} 23. Bd6 {[%clk 0:00:43]}  Qb6 {[%clk 0:00:42]} 24. Rfe1 {[%clk 0:00:41]}  Kf8 {[%clk 0:00:32]} 25. Qd3 {[%clk 0:00:27]}  Rd7 {[%clk 0:00:23]} 26. Qxh7 {[%clk 0:00:27]}  f6 {[%clk 0:00:14]} 27. Qh8+ {[%clk 0:00:15]}  Kf7 {[%clk 0:00:14]} 28. Qh5+ {[%clk 0:00:16]}  Kf8 {[%clk 0:00:14]} 29. Bc5 {[%clk 0:00:16]}  Qc6 {[%clk 0:00:11]} 30. Re6 {[%clk 0:00:14]}  Rd5 {[%clk 0:00:03]} 31. Qh8+ {[%clk 0:00:07]}  Kf7 {[%clk 0:00:04]} 32. Rxe7+ {[%clk 0:00:08]}  Rxe7 {[%clk 0:00:02]} 33. Rxe7+ {[%clk 0:00:09]}  Kg6 {[%clk 0:00:03]} 34. Qxg7+ {[%clk 0:00:09]}  Kf5 {[%clk 0:00:03]} 35. Qh7+ {[%clk 0:00:09]}  Kxf4 {[%clk 0:00:02]} 36. Re4+ {[%clk 0:00:09]}  Kg3 {[%clk 0:00:02]} 37. Qh2# {[%clk 0:00:08]} 1-0

[Event "December 5 Early 2023"]
[Site "https://www.chess.com"]
[Date "2023.12.05"]
[Round "9"]
[White "Bluebaum, Matthias"]
[Black "IM_ArthurDW08"]
[Result "1-0"]
[Board "23"]
[TimeControl "180+1"]
[WhiteFideId "24651516"]
[WhiteElo "3022"]
[BlackElo "2813"]
[WhiteTeam "GER"]
[WhiteClock "0:01:35"]
[BlackClock "0:00:00"]

1. d4 {[%clk 0:03:00]}  Nf6 {[%clk 0:02:58]} 2. c4 {[%clk 0:03:01]}  g6 {[%clk 0:02:58]} 3. Nc3 {[%clk 0:03:00]}  Bg7 {[%clk 0:02:58]} 4. e4 {[%clk 0:03:00]}  d6 {[%clk 0:02:59]} 5. Nf3 {[%clk 0:03:01]}  O-O {[%clk 0:02:58]} 6. Be2 {[%clk 0:03:01]}  e5 {[%clk 0:02:57]} 7. Be3 {[%clk 0:03:02]}  Qe8 {[%clk 0:02:42]} 8. dxe5 {[%clk 0:03:00]}  Ng4 {[%clk 0:02:42]} 9. Bg5 {[%clk 0:03:00]}  Nxe5 {[%clk 0:02:42]} 10. Nd5 {[%clk 0:02:57]}  Nxf3+ {[%clk 0:01:50]} 11. Bxf3 {[%clk 0:02:58]}  f6 {[%clk 0:01:49]} 12. Nxc7 {[%clk 0:02:49]}  Qf7 {[%clk 0:01:43]} 13. Qd5 {[%clk 0:02:40]}  fxg5 {[%clk 0:01:36]} 14. Qxf7+ {[%clk 0:02:40]}  Rxf7 {[%clk 0:01:36]} 15. Nxa8 {[%clk 0:02:41]}  g4 {[%clk 0:01:36]} 16. Be2 {[%clk 0:02:41]}  Bxb2 {[%clk 0:01:36]} 17. Rd1 {[%clk 0:02:38]}  Bc3+ {[%clk 0:01:17]} 18. Kf1 {[%clk 0:02:38]}  Kf8 {[%clk 0:00:58]} 19. c5 {[%clk 0:02:30]}  Nc6 {[%clk 0:00:39]} 20. cxd6 {[%clk 0:02:28]}  Bd4 {[%clk 0:00:39]} 21. f3 {[%clk 0:02:20]}  gxf3 {[%clk 0:00:38]} 22. Bxf3 {[%clk 0:02:20]}  g5 {[%clk 0:00:32]} 23. h3 {[%clk 0:01:54]}  h5 {[%clk 0:00:31]} 24. Ke1 {[%clk 0:01:46]}  g4 {[%clk 0:00:29]} 25. hxg4 {[%clk 0:01:47]}  hxg4 {[%clk 0:00:30]} 26. Rxd4 {[%clk 0:01:47]}  Nxd4 {[%clk 0:00:27]} 27. Rh8+ {[%clk 0:01:47]}  Kg7 {[%clk 0:00:27]} 28. Rxc8 {[%clk 0:01:48]}  gxf3 {[%clk 0:00:27]} 29. gxf3 {[%clk 0:01:49]}  Nxf3+ {[%clk 0:00:27]} 30. Ke2 {[%clk 0:01:49]}  Ng5 {[%clk 0:00:20]} 31. Ke3 {[%clk 0:01:43]}  Kf6 {[%clk 0:00:17]} 32. Nc7 {[%clk 0:01:42]}  Ke5 {[%clk 0:00:14]} 33. Nb5 {[%clk 0:01:43]}  Rf3+ {[%clk 0:00:06]} 34. Ke2 {[%clk 0:01:43]}  Rh3 {[%clk 0:00:03]} 35. Rc5+ {[%clk 0:01:39]}  Kf4 {[%clk 0:00:00]} 36. Rf5+ {[%clk 0:01:35]} 1-0

[Event "December 5 Early 2023"]
[Site "https://www.chess.com"]
[Date "2023.12.05"]
[Round "9"]
[White "Yuan, Qingyu"]
[Black "Movahed, Sina"]
[Result "1-0"]
[Board "24"]
[TimeControl "180+1"]
[WhiteFideId "8609772"]
[BlackFideId "42520835"]
[WhiteElo "2807"]
[BlackElo "2929"]
[WhiteTeam "CHN"]
[BlackTeam "IRI"]
[WhiteClock "0:00:16"]
[BlackClock "0:00:00"]

1. e4 {[%clk 0:03:00]}  c5 {[%clk 0:02:59]} 2. Nf3 {[%clk 0:03:00]}  d6 {[%clk 0:03:00]} 3. Bb5+ {[%clk 0:03:01]}  Bd7 {[%clk 0:03:00]} 4. Bxd7+ {[%clk 0:03:01]}  Qxd7 {[%clk 0:03:01]} 5. c4 {[%clk 0:03:01]}  e5 {[%clk 0:02:59]} 6. Nc3 {[%clk 0:03:01]}  Nc6 {[%clk 0:02:59]} 7. d3 {[%clk 0:03:01]}  Nge7 {[%clk 0:02:59]} 8. a3 {[%clk 0:02:58]}  Ng6 {[%clk 0:02:59]} 9. Nd5 {[%clk 0:02:55]}  Be7 {[%clk 0:02:58]} 10. b4 {[%clk 0:02:55]}  Bd8 {[%clk 0:02:58]} 11. O-O {[%clk 0:02:52]}  O-O {[%clk 0:02:57]} 12. Rb1 {[%clk 0:02:45]}  Bb6 {[%clk 0:02:52]} 13. Be3 {[%clk 0:02:41]}  f5 {[%clk 0:02:47]} 14. exf5 {[%clk 0:02:39]}  Rxf5 {[%clk 0:02:48]} 15. Nd2 {[%clk 0:02:38]}  Raf8 {[%clk 0:02:34]} 16. Ne4 {[%clk 0:02:36]}  cxb4 {[%clk 0:02:34]} 17. Bxb6 {[%clk 0:02:28]}  axb6 {[%clk 0:02:33]} 18. axb4 {[%clk 0:02:27]}  Nf4 {[%clk 0:02:28]} 19. Nxb6 {[%clk 0:02:16]}  Qe6 {[%clk 0:02:27]} 20. g3 {[%clk 0:02:05]}  Qg6 {[%clk 0:02:17]} 21. Nd5 {[%clk 0:01:50]}  Nxd5 {[%clk 0:02:14]} 22. cxd5 {[%clk 0:01:50]}  Nd4 {[%clk 0:02:14]} 23. Kg2 {[%clk 0:01:32]}  Rf3 {[%clk 0:02:11]} 24. Rc1 {[%clk 0:01:30]}  b5 {[%clk 0:02:00]} 25. Rc7 {[%clk 0:01:29]}  R3f7 {[%clk 0:01:30]} 26. Rxf7 {[%clk 0:01:18]}  Rxf7 {[%clk 0:01:29]} 27. f3 {[%clk 0:01:16]}  h6 {[%clk 0:01:27]} 28. Qc1 {[%clk 0:01:10]}  Ra7 {[%clk 0:01:17]} 29. Rf2 {[%clk 0:01:06]}  Kh7 {[%clk 0:01:15]} 30. f4 {[%clk 0:00:56]}  Re7 {[%clk 0:00:59]} 31. Qc8 {[%clk 0:00:50]}  Nf5 {[%clk 0:00:56]} 32. Kh1 {[%clk 0:00:42]}  Qg4 {[%clk 0:00:51]} 33. Qc1 {[%clk 0:00:39]}  Qg6 {[%clk 0:00:43]} 34. Qc8 {[%clk 0:00:34]}  Ra7 {[%clk 0:00:26]} 35. Qc1 {[%clk 0:00:32]}  Nd4 {[%clk 0:00:17]} 36. fxe5 {[%clk 0:00:30]}  dxe5 {[%clk 0:00:18]} 37. d6 {[%clk 0:00:30]}  Qe6 {[%clk 0:00:17]} 38. Kg2 {[%clk 0:00:29]}  Rf7 {[%clk 0:00:10]} 39. Qf1 {[%clk 0:00:25]}  Rd7 {[%clk 0:00:09]} 40. Qd1 {[%clk 0:00:21]}  Qd5 {[%clk 0:00:09]} 41. Kg1 {[%clk 0:00:19]}  Ra7 {[%clk 0:00:09]} 42. Qh5 {[%clk 0:00:17]}  Qc4 {[%clk 0:00:00]} 43. dxc4 {[%clk 0:00:16]} 1-0